bitfinex/quotes_BTCUSD_20230106
["timestamp","ask_amount","ask_price","bid_price","bid_amount"]
[1672967707326,1.29748643,16871.0,16870.0,2.01763532]
[1672967707565,1.47534301,16871.0,16870.0,0.16782775]
[1672967707831,1.47524707,16871.0,16870.0,0.16790767]
[1672967708080,1.47524707,16871.0,16870.0,0.79413573]
[1672967708329,1.47524707,16871.0,16870.0,0.79405581]
[1672967708563,1.74207446,16871.0,16870.0,0.79405581]
[1672967708804,1.7421704,16871.0,16870.0,0.79405581]
[1672967709036,1.7421704,16871.0,16870.0,0.79592192]
[1672967709037,1.29752589,16871.0,16870.0,0.79592192]
[1672967709526,1.29752589,16871.0,16870.0,0.79405581]
[1672967711382,0.81208036,16871.0,16870.0,1.94210863]
[1672967711655,0.45647079,16871.0,16870.0,1.94210863]
[1672967712211,0.45647079,16871.0,16870.0,2.00247163]
[1672967712760,0.45647079,16871.0,16870.0,2.59523963]
[1672967713329,0.45656673,16871.0,16870.0,1.94210863]
[1672967713624,0.45647079,16871.0,16870.0,1.94210863]
[1672967714153,0.45656673,16871.0,16870.0,1.94210863]
[1672967714442,0.45647079,16871.0,16870.0,2.00247163]
[1672967714923,0.45647079,16871.0,16870.0,2.00256492]
[1672967714926,0.45647079,16871.0,16870.0,2.00247163]
[1672967715702,0.45656673,16871.0,16870.0,2.00247163]
[1672967715961,0.45656673,16871.0,16870.0,1.94210863]
[1672967716228,0.8121763,16871.0,16870.0,1.94210863]
[1672967716486,0.6343899,16871.0,16870.0,1.34934063]
[1672967717008,0.6343899,16871.0,16870.0,0.72311257]
[1672967717262,0.63429396,16871.0,16870.0,0.72311257]
[1672967717539,0.63429396,16871.0,16870.0,1.34934063]
[1672967717772,0.63429396,16871.0,16870.0,1.40970363]
[1672967718501,0.81201691,16871.0,16870.0,1.40970363]
[1672967718907,0.45640734,16871.0,16870.0,1.40970363]
[1672967720687,0.45650328,16871.0,16870.0,1.40970363]
[1672967720905,0.45640734,16871.0,16870.0,1.40970363]
[1672967721263,0.45640734,16871.0,16870.0,1.40979692]
[1672967721528,0.45640734,16871.0,16870.0,2.50256492]
[1672967722037,0.45640734,16871.0,16870.0,2.00247163]
[1672967722566,0.45640734,16871.0,16870.0,2.00256492]
[1672967725078,0.18957995,16871.0,16870.0,2.59533292]
[1672967725332,0.18957995,16871.0,16870.0,1.96910486]
[1672967726656,0.18957995,16871.0,16870.0,2.59533292]
[1672967727644,0.18957995,16871.0,16870.0,2.59523963]
[1672967729906,0.18967589,16871.0,16870.0,2.59523963]
[1672967730163,0.18957995,16871.0,16870.0,2.59523963]
[1672967731235,0.45640734,16871.0,16870.0,2.59523963]
[1672967731462,0.18957995,16871.0,16870.0,2.59523963]
[1672967732485,0.18957995,16871.0,16870.0,2.59533672]
[1672967732739,0.18967589,16871.0,16870.0,2.59523963]
[1672967732997,0.45640734,16871.0,16870.0,2.59523963]
[1672967737401,0.45640734,16871.0,16870.0,2.00247163]
[1672967738426,0.63429396,16871.0,16870.0,1.40970363]
[1672967738672,0.63429396,16871.0,16870.0,1.40962181]
[1672967739203,0.6343899,16871.0,16870.0,1.40962181]
[1672967739470,0.63429396,16871.0,16870.0,1.40962181]
[1672967739971,1.07884253,16871.0,16870.0,1.41147161]
[1672967740236,1.07893847,16871.0,16870.0,1.40962181]
[1672967740490,0.81211108,16871.0,16870.0,1.34925881]
[1672967740762,0.81201514,16871.0,16870.0,1.34925881]
[1672967741015,0.81201514,16871.0,16870.0,1.41147161]
[1672967741578,0.81201514,16871.0,16870.0,1.34925881]
[1672967742114,0.81201514,16871.0,16870.0,1.40962181]
[1672967742371,0.81201514,16871.0,16870.0,1.41147161]
[1672967742879,0.81201514,16871.0,16870.0,1.40962181]
[1672967743172,0.81201514,16871.0,16870.0,1.41147161]
[1672967743674,0.81201514,16871.0,16870.0,1.40962181]
[1672967744726,0.81211108,16871.0,16870.0,1.40962181]
[1672967744964,0.81201514,16871.0,16870.0,1.40962181]
[1672967745223,0.45640557,16871.0,16870.0,0.16774593]
[1672967745549,1.25235107,16871.0,16870.0,0.16774593]
[1672967745751,1.25244701,16871.0,16870.0,0.16774593]
[1672967747599,1.84518001,16871.0,16870.0,0.16774593]
[1672967747854,2.37887688,16871.0,16870.0,0.16774593]
[1672967749161,1.84518001,16871.0,16870.0,0.16774593]
[1672967749658,2.37887688,16871.0,16870.0,0.16774593]
[1672967752614,2.37878094,16871.0,16870.0,0.78273668]
[1672967752845,1.25235107,16871.0,16870.0,0.78273668]
[1672967756180,1.69675358,16871.0,16870.0,0.78273668]
[1672967756485,1.10392464,16871.0,16870.0,0.78273668]
[1672967756956,1.45934818,16871.0,16870.0,0.78273668]
[1672967757266,1.45944412,16871.0,16870.0,0.78273668]
[1672967758667,1.10402058,16871.0,16870.0,0.78273668]
[1672967759371,1.45943209,16871.0,16870.0,0.78273668]
[1672967759597,1.45933615,16871.0,16870.0,0.78272214]
[1672967759854,1.45943209,16871.0,16870.0,0.78263383]
[1672967760622,0.81167102,16871.0,16870.0,0.78263383]
[1672967763440,0.45625951,16871.0,16870.0,0.78263383]
[1672967763955,0.45616357,16871.0,16870.0,0.78263383]
[1672967765737,0.45616357,16871.0,16870.0,0.78272214]
[1672967765991,0.45616357,16871.0,16870.0,0.78263383]
[1672967767592,0.45625951,16871.0,16870.0,0.78263383]
[1672967770222,1.04899251,16871.0,16870.0,0.78263383]
[1672967770928,1.04889657,16871.0,16870.0,0.78263383]
[1672967771189,1.04899251,16871.0,16870.0,0.78263383]
[1672967773592,0.60468594,16871.0,16870.0,0.78263383]
[1672967774651,1.19741894,16871.0,16870.0,0.78263383]
[1672967776803,1.73111581,16871.0,16870.0,0.16764308]
[1672967778894,1.73101987,16871.0,16870.0,0.16764308]
[1672967780177,1.73101987,16871.0,16870.0,0.16773139]
[1672967780436,1.13828687,16871.0,16870.0,0.16773139]
[1672967780696,0.60459,16871.0,16870.0,0.82543598]
[1672967780954,0.60459,16871.0,16870.0,0.82534767]
[1672967781228,0.60459,16871.0,16870.0,0.82543598]
[1672967781492,0.011857,16871.0,16870.0,0.82543598]
[1672967782531,0.011857,16871.0,16870.0,0.82534767]
[1672967782785,0.01195294,16871.0,16870.0,0.82534767]
[1672967783078,0.011857,16871.0,16870.0,0.82534767]
[1672967784395,0.011857,16871.0,16870.0,0.82523722]
[1672967785711,0.01195294,16871.0,16870.0,0.82523722]
[1672967786493,0.011857,16871.0,16870.0,0.82532553]
[1672967786743,0.011857,16871.0,16870.0,1.51182828]
[1672967786993,0.45660799,16871.0,16870.0,1.51182828]
[1672967787506,0.45660799,16871.0,16870.0,1.51191659]
[1672967789618,0.81236226,16871.0,16870.0,2.10468459]
[1672967790352,0.81236226,16871.0,16870.0,2.69745259]
[1672967790611,0.63442023,16871.0,16870.0,2.69745259]
[1672967790892,0.63442023,16871.0,16870.0,2.10468459]
[1672967791160,0.63442023,16871.0,16870.0,2.10459628]
[1672967791451,0.81236226,16871.0,16870.0,2.10459628]
[1672967791965,0.63436613,16871.0,16870.0,2.10459628]
[1672967793365,0.63436613,16871.0,16870.0,2.63700128]
[1672967793629,0.63436613,16871.0,16870.0,2.6373448]
[1672967793891,0.63436613,16871.0,16870.0,2.6977078]
[1672967794149,0.63436613,16871.0,16870.0,2.1049398]
[1672967795706,0.63436613,16871.0,16870.0,2.0445768]
[1672967796318,0.63436613,16871.0,16870.0,2.1049398]
[1672967797527,0.81214178,16871.0,16870.0,2.1049398]
[1672967797804,0.63436613,16871.0,16870.0,2.1049398]
[1672967798584,0.81213114,16871.0,16870.0,2.1049398]
[1672967799645,0.81203052,16871.0,16870.0,2.1049398]
[1672967800424,0.45637219,16871.0,16870.0,1.51182828]
[1672967800648,0.63426551,16871.0,16870.0,1.45146528]
[1672967801195,1.0790165,16871.0,16870.0,1.51182828]
[1672967801754,0.63426551,16871.0,16870.0,1.51182828]
[1672967802005,1.0790165,16871.0,16870.0,1.51182828]
[1672967802280,1.0790165,16871.0,16870.0,1.45146528]
[1672967802843,1.0790165,16871.0,16870.0,1.51182828]
[1672967803158,0.81226164,16871.0,16870.0,1.51182828]
[1672967803680,0.63413963,16871.0,16870.0,2.10459628]
[1672967804209,0.63413963,16871.0,16870.0,2.10653833]
[1672967807323,0.18949451,16871.0,16870.0,2.73252768]
[1672967807898,0.18949451,16871.0,16870.0,2.13975968]
[1672967808092,0.45612349,16871.0,16870.0,2.13975968]
[1672967808615,0.18949451,16871.0,16870.0,2.13975968]
[1672967809162,0.45612349,16871.0,16870.0,2.13975968]
[1672967809917,0.18949451,16871.0,16870.0,2.73252768]
[1672967810193,0.01175638,16871.0,16870.0,2.73252768]
[1672967810469,0.01175638,16871.0,16870.0,3.32529568]
[1672967811855,0.01185232,16871.0,16870.0,2.73058563]
[1672967812054,0.18949451,16871.0,16870.0,2.73058563]
[1672967812581,0.01175638,16871.0,16870.0,2.67022263]
[1672967813089,0.01175638,16871.0,16870.0,2.73058563]
[1672967815408,0.01175638,16871.0,16870.0,2.73243542]
[1672967817982,0.18949451,16871.0,16870.0,2.73243542]
[1672967819287,0.45612349,16871.0,16870.0,2.13966742]
[1672967821577,0.45612349,16871.0,16870.0,2.13959612]
[1672967821827,0.45612349,16871.0,16870.0,1.54682812]
[1672967822094,0.81187776,16871.0,16870.0,0.92060006]
[1672967822343,1.07889062,16871.0,16870.0,1.48646512]
[1672967822644,0.81226164,16871.0,16870.0,1.48646512]
[1672967822892,1.07892253,16871.0,16870.0,1.54682812]
[1672967823153,1.07892332,16871.0,16870.0,1.54682812]
[1672967823480,1.07892332,16871.0,16870.0,1.48646512]
[1672967824051,1.07892332,16871.0,16870.0,1.54682812]
[1672967824300,0.81226164,16871.0,16870.0,1.54682812]
[1672967824543,1.07896319,16871.0,16870.0,1.48646512]
[1672967825529,0.6342122,16871.0,16870.0,1.48646512]
[1672967825770,0.6342122,16871.0,16870.0,2.07923312]
[1672967826018,0.6342122,16871.0,16870.0,2.67200112]
[1672967826255,0.6342122,16871.0,16870.0,2.73236412]
[1672967826982,0.81204187,16871.0,16870.0,2.73236412]
[1672967827220,0.81204589,16871.0,16870.0,2.73236412]
[1672967827472,0.45629004,16871.0,16870.0,2.73236412]
[1672967830363,0.81204431,16871.0,16870.0,1.54497833]
[1672967830626,0.81205084,16871.0,16870.0,1.54497833]
[1672967830882,0.6342122,16871.0,16870.0,1.54497833]
[1672967831381,0.6342122,16871.0,16870.0,1.5450752]
[1672967833240,1.07896319,16871.0,16870.0,1.5450752]
[1672967833517,0.81226164,16871.0,16870.0,1.5450752]
[1672967835243,0.81235758,16871.0,16870.0,1.54497833]
[1672967835468,0.81226164,16871.0,16870.0,1.54497833]
[1672967837230,0.63427333,16871.0,16870.0,2.13774633]
[1672967837451,0.63427333,16871.0,16870.0,2.73051433]
[1672967837869,0.45635542,16871.0,16870.0,2.73069445]
[1672967839174,0.81210969,16871.0,16870.0,2.73069445]
[1672967839650,0.63427333,16871.0,16870.0,2.73069445]
[1672967840912,0.81210623,16871.0,16870.0,2.73069445]
[1672967841299,0.63427333,16871.0,16870.0,2.73069445]
[1672967841593,0.45635524,16871.0,16870.0,2.73069445]
[1672967843757,0.63427333,16871.0,16870.0,2.13774633]
[1672967845928,0.63427333,16871.0,16870.0,2.13799302]
[1672967846162,0.63427333,16871.0,16870.0,2.73076102]
[1672967848201,0.63427333,16871.0,16870.0,2.73051433]
[1672967848488,0.63427333,16871.0,16870.0,2.73076102]
[1672967856879,0.81216386,16871.0,16870.0,2.73076102]
[1672967857136,0.45640959,16871.0,16870.0,2.73076102]
[1672967863335,0.18964691,16871.0,16870.0,2.73076102]
[1672967866750,0.18964691,16871.0,16870.0,3.32352902]
[1672967867032,0.45640959,16871.0,16870.0,3.32352902]
[1672967867344,0.45640959,16871.0,16870.0,2.73076102]
[1672967868658,0.18964691,16871.0,16870.0,3.32352902]
[1672967869157,0.18964691,16871.0,16870.0,2.73076102]
[1672967870460,0.18964691,16871.0,16870.0,3.32352902]
[1672967871797,0.45640959,16871.0,16870.0,2.67039802]
[1672967872304,0.45640959,16871.0,16870.0,2.73076102]
[1672967874193,0.45640959,16871.0,16870.0,2.67039802]
[1672967874464,0.81216386,16871.0,16870.0,2.67039802]
[1672967875443,0.63427333,16871.0,16870.0,2.67039802]
[1672967875973,0.63427333,16871.0,16870.0,2.73076102]
[1672967876225,0.63427333,16871.0,16870.0,2.67039802]
[1672967878234,0.63427333,16871.0,16870.0,2.73076102]
[1672967878493,0.63427333,16871.0,16870.0,2.67039802]
[1672967880081,1.07902432,16871.0,16870.0,2.67039802]
[1672967880360,0.63427333,16871.0,16870.0,2.67039802]
[1672967880871,1.07902432,16871.0,16870.0,2.67039802]
[1672967881360,1.07908197,16871.0,16870.0,2.67039802]
[1672967882359,1.07907678,16871.0,16870.0,2.67029862]
[1672967882603,0.81226164,16871.0,16870.0,2.67029862]
[1672967883622,1.07907342,16871.0,16870.0,2.67029862]
[1672967884115,1.07907342,16871.0,16870.0,2.73066162]
[1672967884362,1.07907342,16871.0,16870.0,2.67029862]
[1672967885212,0.63432243,16871.0,16870.0,2.67029862]
[1672967885647,0.63432243,16871.0,16870.0,2.73066162]
[1672967885648,0.63432243,16871.0,16870.0,2.67029862]
[1672967885916,0.63432243,16871.0,16870.0,2.73066162]
[1672967886431,0.63432243,16871.0,16870.0,2.67029862]
[1672967887594,0.63432243,16871.0,16870.0,2.73066162]
[1672967888205,0.81219031,16871.0,16870.0,2.73066162]
[1672967888443,0.45643604,16871.0,16870.0,2.73066162]
[1672967888940,0.44690594,16871.0,16870.0,2.73066162]
[1672967889487,0.18009416,16871.0,16870.0,2.73066162]
[1672967889724,0.44690594,16871.0,16870.0,2.73066162]
[1672967892516,0.18009416,16871.0,16870.0,2.73066162]
[1672967893779,0.44690594,16871.0,16870.0,2.73066162]
[1672967894034,0.18009416,16871.0,16870.0,2.73066162]
[1672967895314,0.44690594,16871.0,16870.0,2.73066162]
[1672967895821,0.18009416,16871.0,16870.0,2.73066162]
[1672967896806,0.44690594,16871.0,16870.0,2.73066162]
[1672967897058,0.18009416,16871.0,16870.0,2.73066162]
[1672967898375,0.18009416,16871.0,16870.0,2.67029862]
[1672967898629,0.44690594,16871.0,16870.0,2.67029862]
[1672967898890,0.44690594,16871.0,16870.0,2.73066162]
[1672967901790,0.44690594,16871.0,16870.0,2.67029862]
[1672967902310,0.44690594,16871.0,16870.0,2.73066162]
[1672967907408,0.44690594,16871.0,16870.0,2.67029862]
[1672967907908,0.44690594,16871.0,16870.0,2.73066162]
[1672967909175,0.18009416,16871.0,16870.0,2.73066162]
[1672967910202,0.44690594,16871.0,16870.0,2.73066162]
[1672967911574,0.80266493,16871.0,16870.0,2.73066162]
[1672967911826,0.44691066,16871.0,16870.0,2.67029862]
[1672967912402,0.44691066,16871.0,16870.0,2.73066162]
[1672967912848,0.44691066,16871.0,16870.0,2.73059423]
[1672967915518,0.44691066,16871.0,16870.0,2.67023123]
[1672967915763,0.44691066,16871.0,16870.0,2.73059423]
[1672967917753,0.44691066,16871.0,16870.0,2.67023123]
[1672967918270,0.44691066,16871.0,16870.0,2.73059423]
[1672967922183,0.18009888,16871.0,16870.0,2.73059423]
[1672967924034,0.18009888,16871.0,16870.0,3.32336223]
[1672967924485,0.18009888,16871.0,16870.0,3.50007511]
[1672967931292,0.18009888,16871.0,16870.0,3.32336223]
[1672967931767,0.18009888,16871.0,16870.0,2.73059423]
[1672967932773,0.44691066,16871.0,16870.0,2.73059423]
[1672967933018,0.44691066,16871.0,16870.0,2.67023123]
[1672967933524,0.44691066,16871.0,16870.0,2.73059423]
[1672967937952,0.44691066,16871.0,16870.0,2.73034754]
[1672967939519,0.44691066,16871.0,16870.0,2.73059069]
[1672967942259,0.44691066,16871.0,16870.0,2.73034754]
[1672967942647,0.44691066,16871.0,16870.0,2.66998454]
[1672967945585,0.62479233,16871.0,16870.0,2.66998454]
[1672967945891,0.62479233,16871.0,16870.0,2.67022769]
[1672967946162,0.80268954,16871.0,16870.0,2.67022769]
[1672967946424,0.80268951,16871.0,16870.0,2.67022769]
[1672967946669,0.62479233,16871.0,16870.0,2.66998454]
[1672967946929,0.62479233,16871.0,16870.0,2.67022769]
[1672967947260,0.62488827,16871.0,16870.0,2.66998454]
[1672967947508,0.62479233,16871.0,16870.0,2.66998454]
[1672967947999,0.62479233,16871.0,16870.0,2.67022769]
[1672967948243,1.06954332,16871.0,16870.0,2.67022769]
[1672967948494,0.80273154,16871.0,16870.0,2.07745969]
[1672967948745,0.80273154,16871.0,16870.0,1.48437204]
[1672967949696,0.80282748,16871.0,16870.0,1.48437204]
[1672967949933,0.80273154,16871.0,16870.0,1.48461519]
[1672967950422,0.80273154,16871.0,16870.0,0.85838713]
[1672967950668,0.80273154,16871.0,16870.0,2.13774619]
[1672967950906,0.80273154,16871.0,16870.0,2.07738319]
[1672967951284,1.0695035,16871.0,16870.0,2.07738319]
[1672967951498,0.62475251,16871.0,16870.0,2.13774619]
[1672967951733,0.62475251,16871.0,16870.0,2.73051419]
[1672967952602,0.8025933,16871.0,16870.0,2.73051419]
[1672967952871,0.62475251,16871.0,16870.0,2.73051419]
[1672967953127,0.80259257,16871.0,16870.0,2.67015119]
[1672967953387,0.62475251,16871.0,16870.0,2.73051419]
[1672967953640,0.80259221,16871.0,16870.0,2.73051419]
[1672967953898,0.44683794,16871.0,16870.0,2.73051419]
[1672967955467,0.44683794,16871.0,16870.0,2.67015119]
[1672967955721,0.62475251,16871.0,16870.0,2.66990804]
[1672967958809,0.62475251,16871.0,16870.0,2.07714004]
[1672967959321,0.62475251,16871.0,16870.0,2.07738319]
[1672967959575,1.0695035,16871.0,16870.0,2.07738319]
[1672967959851,0.80273154,16871.0,16870.0,2.07738319]
[1672967960100,0.80273154,16871.0,16870.0,1.48437204]
[1672967960401,0.44697727,16871.0,16870.0,0.16721804]
[1672967961413,0.44707321,16871.0,16870.0,0.16721804]
[1672967963246,1.03971027,16871.0,16870.0,0.16721804]
[1672967963499,1.03980621,16871.0,16870.0,0.16721804]
[1672967964024,1.43980621,16871.0,16870.0,0.16721804]
[1672967964549,2.17398864,16871.0,16870.0,0.16721804]
[1672967965102,2.78551864,16871.0,16870.0,0.16721804]
[1672967965636,2.02555831,16871.0,16870.0,0.16721804]
[1672967965881,2.02546237,16871.0,16870.0,0.16721804]
[1672967966465,1.5811597,16871.0,16870.0,0.16721804]
[1672967967196,2.02540564,16871.0,16870.0,0.16721804]
[1672967968254,1.5811597,16871.0,16870.0,0.16721804]
[1672967969010,2.02537044,16871.0,16870.0,0.16721804]
[1672967969543,2.02546638,16871.0,16870.0,0.16721804]
[1672967970043,2.02537044,16871.0,16870.0,0.16721804]
[1672967970263,2.02537044,16871.0,16870.0,0.16714508]
[1672967970545,2.02546638,16871.0,16870.0,0.16714508]
[1672967971067,1.58125564,16871.0,16870.0,0.16714508]
[1672967971589,2.02545352,16871.0,16870.0,0.16714508]
[1672967972367,1.58125564,16871.0,16870.0,0.16714508]
[1672967973413,2.02543676,16871.0,16870.0,0.16714508]
[1672967973660,1.58125564,16871.0,16870.0,0.16714508]
[1672967978168,2.17398864,16871.0,16870.0,0.16714508]
[1672967978418,2.78551864,16871.0,16870.0,0.16714508]
[1672967978684,2.17398864,16871.0,16870.0,0.16714508]
[1672967979447,2.1738927,16871.0,16870.0,0.16714508]
[1672967983271,2.17398864,16871.0,16870.0,0.16714508]
[1672967984584,2.78551864,16871.0,16870.0,0.16714508]
[1672967987489,3.31921551,16871.0,16870.0,0.16714508]
[1672967992210,3.31921551,16871.0,16870.0,0.1670354]
[1672967995525,2.70768551,16871.0,16870.0,0.1670354]
[1672967995765,2.70758392,16871.0,16870.0,0.1670354]
[1672967999083,3.47390284,16871.0,16870.0,0.1670354]
[1672967999341,4.0742448,16871.0,16870.0,0.1670354]
[1672967999839,4.07212011,16871.0,16870.0,0.0970354]
[1672968000082,4.07412011,16871.0,16870.0,0.1070354]
[1672968006790,3.02950283,16871.0,16870.0,0.1070354]
[1672968007057,3.09182494,16871.0,16870.0,0.1070354]
[1672968009604,3.08982494,16871.0,16870.0,0.0970354]
[1672968009861,3.20282494,16871.0,16870.0,0.1040354]
[1672968010110,3.20282494,16871.0,16870.0,0.0970354]
[1672968010359,3.31582494,16871.0,16870.0,0.1040354]
[1672968012199,3.34494713,16871.0,16870.0,0.1040354]
[1672968012753,3.73871464,16871.0,16870.0,0.1040354]
[1672968012959,3.34494713,16871.0,16870.0,0.1040354]
[1672968018229,3.34494713,16871.0,16870.0,0.10395195]
[1672968024359,2.73341713,16871.0,16870.0,0.10395195]
[1672968026508,3.34494713,16871.0,16870.0,0.10395195]
[1672968031301,4.63825993,16871.0,16870.0,9.5e-07]
[1672968031567,0.5,16870.0,16867.0,0.00188554]
[1672968031902,3.91531384,16869.0,16867.0,0.00188554]
[1672968032090,2.39438266,16868.0,16867.0,0.00188554]
[1672968032351,2.69438266,16868.0,16867.0,0.00188554]
[1672968032604,3.88005866,16868.0,16867.0,0.00188554]
[1672968032865,3.25598682,16868.0,16867.0,0.00188554]
[1672968033158,3.88005866,16868.0,16867.0,0.00188554]
[1672968033402,3.22049307,16868.0,16867.0,0.00188554]
[1672968033672,3.81333107,16868.0,16867.0,0.00188554]
[1672968034185,3.94933107,16868.0,16867.0,0.00188554]
[1672968035504,4.16170025,16868.0,16867.0,0.00188554]
[1672968036020,4.02570025,16868.0,16867.0,0.00188554]
[1672968036276,4.16170025,16868.0,16867.0,0.00188554]
[1672968043602,3.53762841,16868.0,16867.0,0.00188554]
[1672968043795,4.16170025,16868.0,16867.0,0.00188554]
[1672968044870,4.1334859,16868.0,16867.0,0.00188554]
[1672968045379,4.81318712,16868.0,16867.0,0.00188554]
[1672968046062,4.1334859,16868.0,16867.0,0.00188554]
[1672968055229,4.16912524,16868.0,16867.0,0.00188554]
[1672968055486,4.16912524,16868.0,16867.0,0.00182538]
[1672968055749,3.956852,16868.0,16867.0,0.00182538]
[1672968067008,4.83044689,16868.0,16867.0,0.00182538]
[1672968068612,3.956852,16868.0,16867.0,0.00182538]
[1672968069129,4.83044689,16868.0,16867.0,0.00182538]
[1672968070029,5.37362188,16868.0,16867.0,0.00182538]
[1672968074729,4.83044689,16868.0,16867.0,0.00182538]
[1672968074989,4.79480755,16868.0,16867.0,0.00182538]
[1672968076061,4.18327755,16868.0,16867.0,0.00182538]
[1672968076303,4.79480755,16868.0,16867.0,0.00182538]
[1672968077088,4.04727755,16868.0,16867.0,0.00182538]
[1672968077381,5.32081861,16868.0,16867.0,0.00182538]
[1672968077872,5.32081861,16868.0,16867.0,0.00170739]
[1672968078352,4.70928861,16868.0,16867.0,0.00170739]
[1672968078655,5.32081861,16868.0,16867.0,0.00170739]
[1672968078894,5.32931861,16868.0,16867.0,0.00170739]
[1672968079156,4.80330755,16868.0,16867.0,0.00170739]
[1672968079439,4.19177755,16868.0,16867.0,0.00170739]
[1672968079691,4.80330755,16868.0,16867.0,0.00170739]
[1672968080029,4.43149768,16868.0,16867.0,0.00170739]
[1672968080214,2.93787279,16868.0,16867.0,0.00170739]
[1672968081241,3.37829986,16868.0,16867.0,0.00170739]
[1672968081504,4.02918414,16868.0,16867.0,0.00170739]
[1672968081768,4.96779038,16868.0,16867.0,0.00170739]
[1672968082300,5.03875609,16868.0,16867.0,0.00170739]
[1672968082813,3.71765414,16868.0,16867.0,0.00170739]
[1672968083079,4.32918414,16868.0,16867.0,0.00170739]
[1672968083602,4.86714582,16868.0,16867.0,0.00170739]
[1672968083872,3.86331685,16868.0,16867.0,0.00170739]
[1672968084890,3.25178685,16868.0,16867.0,0.00170739]
[1672968085204,4.41562535,16868.0,16867.0,0.00170739]
[1672968085398,3.86331685,16868.0,16867.0,0.00170739]
[1672968085654,4.41562535,16868.0,16867.0,0.00170739]
[1672968085914,3.86331685,16868.0,16867.0,0.00170739]
[1672968086180,3.80413358,16868.0,16867.0,0.00170739]
[1672968086490,4.41067337,16868.0,16867.0,0.00170739]
[1672968086700,3.79914337,16868.0,16867.0,0.00170739]
[1672968086958,4.41067337,16868.0,16867.0,0.00170739]
[1672968087789,3.79914337,16868.0,16867.0,0.00170739]
[1672968088030,4.39711328,16868.0,16867.0,0.00170739]
[1672968088289,3.84463077,16868.0,16867.0,0.00170739]
[1672968088548,4.39711328,16868.0,16867.0,0.00170739]
[1672968088795,3.84463077,16868.0,16867.0,0.00170739]
[1672968089838,3.23310077,16868.0,16867.0,0.00170739]
[1672968090088,3.84463077,16868.0,16867.0,0.00170739]
[1672968090395,3.23310077,16868.0,16867.0,0.00170739]
[1672968090619,3.8445163,16868.0,16867.0,0.00170739]
[1672968092179,3.2329863,16868.0,16867.0,0.00170739]
[1672968092438,4.46858814,16868.0,16867.0,0.00170739]
[1672968092689,3.2329863,16868.0,16867.0,0.00170739]
[1672968093013,3.85705814,16868.0,16867.0,0.00170739]
[1672968093200,4.46858814,16868.0,16867.0,0.00170739]
[1672968093454,3.8445163,16868.0,16867.0,0.00170739]
[1672968093711,3.2329863,16868.0,16867.0,0.00170739]
[1672968093979,3.85700458,16868.0,16867.0,0.00170739]
[1672968094258,4.46853458,16868.0,16867.0,0.00170739]
[1672968094499,3.8445163,16868.0,16867.0,0.00170739]
[1672968094750,3.2329863,16868.0,16867.0,0.00170739]
[1672968095033,4.46858814,16868.0,16867.0,0.00170739]
[1672968095581,3.8445163,16868.0,16867.0,0.00170739]
[1672968096577,4.46858814,16868.0,16867.0,0.00170739]
[1672968096829,3.8445163,16868.0,16867.0,0.00170739]
[1672968097632,4.48040396,16868.0,16867.0,0.00170739]
[1672968097881,5.36249885,16868.0,16867.0,0.00170739]
[1672968098934,4.83140743,16868.0,16867.0,0.00170739]
[1672968103927,3.95781254,16868.0,16867.0,0.00170739]
[1672968109669,3.95781254,16868.0,16867.0,3.9e-07]
[1672968110169,5.5458319,16868.0,16867.0,3.9e-07]
[1672968114037,4.83311145,16868.0,16867.0,3.9e-07]
[1672968114286,6.03935871,16868.0,16867.0,3.9e-07]
[1672968116809,5.42782871,16868.0,16867.0,3.9e-07]
[1672968117075,0.5,16867.0,16865.0,0.00043831]
[1672968117331,3.283162,16866.0,16865.0,0.00043831]
[1672968118670,3.418162,16866.0,16865.0,0.00043831]
[1672968119448,3.41825794,16866.0,16865.0,0.00043831]
[1672968121032,3.94692113,16866.0,16865.0,0.00043831]
[1672968124412,1.57528913,16866.0,16865.0,0.00043831]
[1672968124676,3.94692113,16866.0,16865.0,0.00043831]
[1672968127186,4.39161324,16866.0,16865.0,0.00043831]
[1672968129551,3.94692113,16866.0,16865.0,0.00043831]
[1672968133769,3.64692113,16866.0,16865.0,0.00043831]
[1672968134568,3.94692113,16866.0,16865.0,0.00043831]
[1672968135865,3.64692113,16866.0,16865.0,0.00043831]
[1672968136652,3.94692113,16866.0,16865.0,0.00043831]
[1672968136901,3.64692113,16866.0,16865.0,0.00043831]
[1672968138145,3.94692113,16866.0,16865.0,0.00043831]
[1672968140085,3.94692113,16866.0,16865.0,0.00032417]
[1672968141120,4.06684895,16866.0,16865.0,0.00032417]
[1672968142170,3.94692113,16866.0,16865.0,0.00032417]
[1672968144233,3.64692113,16866.0,16865.0,0.00032417]
[1672968144942,3.94692113,16866.0,16865.0,0.00032417]
[1672968145713,3.64692113,16866.0,16865.0,0.00032417]
[1672968145962,3.94692113,16866.0,16865.0,0.00032417]
[1672968146216,3.33539113,16866.0,16865.0,0.00032417]
[1672968146468,3.94692113,16866.0,16865.0,0.00032417]
[1672968146716,3.33539113,16866.0,16865.0,0.00032417]
[1672968146976,3.64692113,16866.0,16865.0,0.00032417]
[1672968147230,3.03539113,16866.0,16865.0,0.00032417]
[1672968147544,3.64692113,16866.0,16865.0,0.00032417]
[1672968149492,3.03539113,16866.0,16865.0,0.00032417]
[1672968149751,3.64692113,16866.0,16865.0,0.00032417]
[1672968150262,3.03539113,16866.0,16865.0,0.00032417]
[1672968150508,3.64692113,16866.0,16865.0,0.00032417]
[1672968151023,3.03539113,16866.0,16865.0,0.00032417]
[1672968151274,3.03529519,16866.0,16865.0,0.00032417]
[1672968151803,3.64682519,16866.0,16865.0,0.00032417]
[1672968152011,3.03529519,16866.0,16865.0,0.00032417]
[1672968152266,3.64682519,16866.0,16865.0,0.00032417]
[1672968153034,3.03529519,16866.0,16865.0,0.00032417]
[1672968153298,3.64682519,16866.0,16865.0,0.00032417]
[1672968153538,3.03529519,16866.0,16865.0,0.00032417]
[1672968153806,3.64682519,16866.0,16865.0,0.00032417]
[1672968154297,3.03529519,16866.0,16865.0,0.00032417]
[1672968154554,3.64682519,16866.0,16865.0,0.00032417]
[1672968154815,3.64692113,16866.0,16865.0,0.00032417]
[1672968160919,3.94692113,16866.0,16865.0,0.00032417]
[1672968162927,3.94692113,16866.0,16865.0,0.0002134]
[1672968177815,3.03539113,16866.0,16865.0,0.0002134]
[1672968179338,3.03529519,16866.0,16865.0,0.0002134]
[1672968183074,3.03539113,16866.0,16865.0,0.0002134]
[1672968184391,3.63603374,16866.0,16865.0,0.00013363]
[1672968184896,4.24756374,16866.0,16865.0,0.00013363]
[1672968185151,3.64692113,16866.0,16865.0,0.00013363]
[1672968185402,2.44248313,16866.0,16865.0,0.00013363]
[1672968190279,3.04299617,16866.0,16865.0,0.00013363]
[1672968190489,3.65452617,16866.0,16865.0,0.00013363]
[1672968191277,3.05401313,16866.0,16865.0,0.00013363]
[1672968193139,0.5,16865.0,16864.0,0.6226604]
[1672968193400,3.40513824,16865.0,16863.0,1.64608178]
[1672968193667,1.14536105,16864.0,16863.0,1.17968178]
[1672968193946,1.12681005,16864.0,16863.0,1.17968178]
[1672968194526,1.12681005,16864.0,16862.0,0.62407184]
[1672968194775,1.71978905,16864.0,16862.0,1.28035664]
[1672968195294,0.5,16863.0,16862.0,1.28035664]